2CCN - Level 2 Cost Centre Name,,9CCN - Level 9 Cost Centre Name,9CCC - Level 9 Cost Centre Code,9AN - Level 9 Account Name,9AC - Level 9 Account Code,Date posted,Date of transaction,Merchant Name,Merchant City,Originating Account Name,Originating Account Number,MCC/SIC Code,MCC Description,Original Amount,Currency,Conversion Rate,Billed Amount,Debit Credit,Reference Number,Statement Cycle,Account Name
Gloucester City Council,23UE,MANAGING DIRECTOR,RE100,OTHER MINOR SUPPLIES SERVICES,5590,2016-03-10,2016-03-09,Amazon UK Marketplace,800-279-6620,REDACTED,471565******1967,5999,MISCELLANEOUS AND RETAIL STORES,3.95,Pound Sterling (826),1,3.95,Debit,74313226069000956074617,2016-04-02,GLOUCESTER CC
Gloucester City Council,23UE,MANAGING DIRECTOR,RE100,VOCATIONAL TRAINING,2970,2016-03-17,2016-03-16,WWW.SOLACE.ORG.UK,PONTEFRACT,REDACTED,471565******1967,8699,MEMBERSHIP ORGANIZATIONS NOT ELSEWHERE CLASSIFIED,358.8,Pound Sterling (826),1,358.8,Debit,74085326077465000121900,2016-04-02,GLOUCESTER CC
Gloucester City Council,23UE,MANAGING DIRECTOR,RE100,SUBSCRIPTIONS,5600,2016-03-22,2016-03-21,RAMADA ENCORE NEWCASTLE G,GATESHEAD,REDACTED,471565******1967,7011,LODGING  HOTELS  MOTELS  RESORTS,175.2,Pound Sterling (826),1,175.2,Debit,74463656081910816915843,2016-04-02,GLOUCESTER CC
Gloucester City Council,23UE,MANAGING DIRECTOR,RE100,PUBLIC TRANSPORTATION,4061,2016-03-25,2016-03-24,EASYJET 000EQF1SJ2,LUTON  BEDS,REDACTED,471565******1967,3245,EASYJET,96.88,Pound Sterling (826),1,96.88,Debit,74463656085870854642046,2016-04-02,GLOUCESTER CC
Gloucester City Council,23UE,TOURISM MARKETING,LT100,EXHIBITS AND COLLECTIONS,5038,2016-03-07,2016-03-04,GLOUCESTER CC,GLOUCESTER,REDACTED,471565******4015,9399,GOVERNMENT SERVICES NOT ELSEWHERE CLASSIFIED,-29.99,Pound Sterling (826),1,-29.99,Credit,74745096066040371101924,2016-04-02,GLOUCESTER CC
Gloucester City Council,23UE,DEMOCRATIC SERVICES,RS100,OFFICE EQUIPMENT <5000,5010,2016-03-17,2016-03-15,WWW.GEAR4MUSIC.COM,8431550800,REDACTED,471565******1715,5733,MUSIC STORES-MUSICAL INSTRUMENTS  PIANOS  SHEET MUSIC,30.98,Pound Sterling (826),1,30.98,Debit,74579156077008979353403,2016-04-02,GLOUCESTER CC
Gloucester City Council,23UE,HOMELESSNESS,CH120,BOARD AND LODGING,5515,2016-03-03,2016-03-02,ROOMSBOOKED LTD,CHELTENHAM,REDACTED,471565******1443,7011,LODGING  HOTELS  MOTELS  RESORTS,715,Pound Sterling (826),1,715,Debit,74678586063020144268170,2016-04-02,GLOUCESTER CC
Gloucester City Council,23UE,HOMELESSNESS,CH120,BOARD AND LODGING,5515,2016-03-07,2016-03-04,TRAVELODGE WEBSITE,RESERVATION,REDACTED,471565******1443,3615,TRAVELODGE,164,Pound Sterling (826),1,164,Debit,74424716064298179419103,2016-04-02,GLOUCESTER CC
Gloucester City Council,23UE,HOMELESSNESS,CH120,BOARD AND LODGING,5515,2016-03-08,2016-03-07,ROOMSBOOKED LTD,CHELTENHAM,REDACTED,471565******1443,7011,LODGING  HOTELS  MOTELS  RESORTS,145,Pound Sterling (826),1,145,Debit,74678586068050146856966,2016-04-02,GLOUCESTER CC
Gloucester City Council,23UE,HOMELESSNESS,CH120,BOARD AND LODGING,5515,2016-03-08,2016-03-07,ROOMSBOOKED LTD,CHELTENHAM,REDACTED,471565******1443,7011,LODGING  HOTELS  MOTELS  RESORTS,15,Pound Sterling (826),1,15,Debit,74678586068050146856941,2016-04-02,GLOUCESTER CC
Gloucester City Council,23UE,HOMELESSNESS,CH120,BOARD AND LODGING,5515,2016-03-09,2016-03-08,ROOMSBOOKED LTD,CHELTENHAM,REDACTED,471565******1443,7011,LODGING  HOTELS  MOTELS  RESORTS,100,Pound Sterling (826),1,100,Debit,74678586069060073442598,2016-04-02,GLOUCESTER CC
Gloucester City Council,23UE,HOMELESSNESS,CH120,BOARD AND LODGING,5515,2016-03-30,2016-03-29,TRAVELODGE WEBSITE,RESERVATION,REDACTED,471565******1443,3615,TRAVELODGE,301,Pound Sterling (826),1,301,Debit,74424716089298154728552,2016-04-02,GLOUCESTER CC
Gloucester City Council,23UE,HOMELESSNESS,CH120,BOARD AND LODGING,5515,2016-03-30,2016-03-29,TRAVELODGE WEBSITE,RESERVATION,REDACTED,471565******1443,3615,TRAVELODGE,49,Pound Sterling (826),1,49,Debit,74424716089298154729345,2016-04-02,GLOUCESTER CC
Gloucester City Council,23UE,DOCKS COMPLEX - SERVICES,RB100,OPERATIONAL EQUIPMENT <5000,5012,2016-03-24,2016-03-23,B AND Q 1179,GLOUCESTER,REDACTED,471565******8223,5211,LUMBER AND BUILDING MATERIALS STORES,9,Pound Sterling (826),1,9,Debit,74579156084003173662874,2016-04-02,GLOUCESTER CC
Gloucester City Council,23UE,DOCKS COMPLEX - SERVICES,RB100,CLEANING MATERIALS,3600,2016-03-31,2016-03-30,SAINSBURYS SUPERMA,GLOUCESTER QU,REDACTED,471565******8223,5411,GROCERY STORES  SUPERMARKETS,18.2,Pound Sterling (826),1,18.2,Debit,74579156091006274900813,2016-04-02,GLOUCESTER CC
Gloucester City Council,23UE,DIRECTOR RESOURCES,MR102,FEES FOR SERVICES RECEIVED,5350,2016-03-09,2016-03-08,MIPERMIT PARKING-DOM,INTERNET,REDACTED,471565******1326,7523,AUTOMOBILE PARKING LOTS AND GARAGES,25,Pound Sterling (826),1,25,Debit,74745106069060078020726,2016-04-02,GLOUCESTER CC
Gloucester City Council,23UE,HEALTH ADMINISTRATION,HA200,VOCATIONAL TRAINING,2970,2016-03-10,2016-03-09,PESTFIX,1903538488,REDACTED,471565******8476,5199,NON-DURABLE GOODS NOT ELSEWHERE CLASSIFIED,193.04,Pound Sterling (826),1,193.04,Debit,74830506069295315735192,2016-04-02,GLOUCESTER CC
Gloucester City Council,23UE,HEALTH ADMINISTRATION,HA200,VOCATIONAL TRAINING,2970,2016-03-10,2016-03-09,PAYPAL *CLTINNOVATI,35314369001,REDACTED,471565******8476,5169,CHEMICALS AND ALLIED PRODUCTS NOT ELSEWH,155.9,Pound Sterling (826),1,155.9,Debit,74998866069609253211568,2016-04-02,GLOUCESTER CC
Gloucester City Council,23UE,HEALTH ADMINISTRATION,HA200,VOCATIONAL TRAINING,2970,2016-03-14,2016-03-11,MIPERMIT PARKING-DOM,INTERNET,REDACTED,471565******8476,7523,AUTOMOBILE PARKING LOTS AND GARAGES,30,Pound Sterling (826),1,30,Debit,74745106072090090684311,2016-04-02,GLOUCESTER CC
Gloucester City Council,23UE,HEALTH ADMINISTRATION,HA200,VOCATIONAL TRAINING,2970,2016-03-23,2016-03-22,RH ENVIRONMENTAL LIMITED,NEWCASTLE EML,REDACTED,471565******8476,8299,SCHOOLS AND EDUCATIONAL SERVICES NOT ELSEWHERE CLASSIFIED,190.8,Pound Sterling (826),1,190.8,Debit,74463656083890831449432,2016-04-02,GLOUCESTER CC
Gloucester City Council,23UE,CITY MUSEUM CATERING,LM202,OTHER CATERING PROVISIONS,5112,2016-03-11,2016-03-10,BOOKER LIMITED GLOUCESTER,GLOUCESTER,REDACTED,471565******9991,5811,CATERERS,6.56,Pound Sterling (826),1,6.56,Debit,74463666070920700063271,2016-04-02,GLOUCESTER CC
Gloucester City Council,23UE,FOLK MUSEUM,LM210,CATERING PROVISIONS -FOOD,5110,2016-03-22,2016-03-21,BOOKER LIMITED GLOUCESTER,GLOUCESTER,REDACTED,471565******9991,5811,CATERERS,70.03,Pound Sterling (826),1,70.03,Debit,74463666081910816308881,2016-04-02,GLOUCESTER CC
Gloucester City Council,23UE,CITY MUSEUM AND ART GALLERY,LM200,,5070,2016-03-30,2016-03-29,TIMPSON LTD,GLOUCESTER,REDACTED,471565******9991,7251,SHOE REPAIR SHOPS  SHOE SHINE PARLORS & HAT CLEANING SHOPS,37.98,Pound Sterling (826),1,37.98,Debit,74579156089007969950877,2016-04-02,GLOUCESTER CC
Gloucester City Council,23UE,CITY MUSEUM CATERING,LM202,CATERING PROVISIONS -FOOD,5110,2016-03-30,2016-03-29,BOOKER LIMITED GLOUCESTER,GLOUCESTER,REDACTED,471565******9991,5811,CATERERS,197.49,Pound Sterling (826),1,197.49,Debit,74463666089910895181334,2016-04-02,GLOUCESTER CC
Gloucester City Council,23UE,GUILDHALL BAR AND CAF�,LA210,CATERING PROVISIONS -FOOD,5110,2016-03-03,2016-03-02,ICELAND,GLOUCESTER,REDACTED,471565******2470,5411,GROCERY STORES  SUPERMARKETS,6,Pound Sterling (826),1,6,Debit,74698166063020311242922,2016-04-02,GLOUCESTER CC
Gloucester City Council,23UE,GUILDHALL BAR AND CAF�,LA210,CATERING PROVISIONS -FOOD,5110,2016-03-08,2016-03-07,ALDI,GLOUCESTER,REDACTED,471565******2470,5411,GROCERY STORES  SUPERMARKETS,6.99,Pound Sterling (826),1,6.99,Debit,74019476068495000898293,2016-04-02,GLOUCESTER CC
Gloucester City Council,23UE,GUILDHALL BAR AND CAF�,LA210,CATERING PROVISIONS -FOOD,5110,2016-03-30,2016-03-29,ICELAND,GLOUCESTER,REDACTED,471565******2470,5411,GROCERY STORES  SUPERMARKETS,22.5,Pound Sterling (826),1,22.5,Debit,74698166090090128589093,2016-04-02,GLOUCESTER CC
Gloucester City Council,23UE,CREMATORIUM,HC200,MAINT OF GROUNDS - GENERAL,3030,2016-03-03,2016-03-02,SCREWFIX DIRECT,YEOVIL,REDACTED,471565******4841,5211,LUMBER AND BUILDING MATERIALS STORES,209.96,Pound Sterling (826),1,209.96,Debit,74579156063004273735482,2016-04-02,GLOUCESTER CC
Gloucester City Council,23UE,MEMBERS SUPPORT,RC300,PUBLIC TRANSPORTATION,4061,2016-03-03,2016-03-02,TRAINLINE,RAIL TICKETS,REDACTED,471565******4841,4112,PASSENGER RAILWAYS,172.38,Pound Sterling (826),1,172.38,Debit,74998866062608115700328,2016-04-02,GLOUCESTER CC
Gloucester City Council,23UE,PLANNING POLICY & HERITAGE,PT300,PUBLIC TRANSPORTATION,4061,2016-03-04,2016-03-03,TRAINLINE,RAIL TICKETS,REDACTED,471565******4841,4112,PASSENGER RAILWAYS,40.7,Pound Sterling (826),1,40.7,Debit,74998866063608136377915,2016-04-02,GLOUCESTER CC
Gloucester City Council,23UE,ENVIRONMENTAL PLANNING,LM340,PUBLIC TRANSPORTATION,4061,2016-03-08,2016-03-07,TRAINLINE,RAIL TICKETS,REDACTED,471565******4841,4112,PASSENGER RAILWAYS,72.01,Pound Sterling (826),1,72.01,Debit,74998866067609213369888,2016-04-02,GLOUCESTER CC
Gloucester City Council,23UE,ENVIRONMENTAL PLANNING,HE300,PUBLIC TRANSPORTATION,4061,2016-03-08,2016-03-07,TRAINLINE,RAIL TICKETS,REDACTED,471565******4841,4112,PASSENGER RAILWAYS,73.54,Pound Sterling (826),1,73.54,Debit,74998866067609213380588,2016-04-02,GLOUCESTER CC
Gloucester City Council,23UE,TOWNSCAPE HERITAGE INITIATIVE,LY145,CONTRACT PAYMENTS,0020,2016-03-11,2016-03-10,TRAINLINE,RAIL TICKETS,REDACTED,471565******4841,4112,PASSENGER RAILWAYS,23.61,Pound Sterling (826),1,23.61,Debit,74998866070609275327449,2016-04-02,GLOUCESTER CC
Gloucester City Council,23UE,TOWNSCAPE HERITAGE INITIATIVE,CH110,VOCATIONAL TRAINING,2970,2016-03-11,2016-03-10,TRAINLINE,RAIL TICKETS,REDACTED,471565******4841,4112,PASSENGER RAILWAYS,161.16,Pound Sterling (826),1,161.16,Debit,74998866070609275326987,2016-04-02,GLOUCESTER CC
Gloucester City Council,23UE,ENVIRONMENTAL PLANNING,HE300,PUBLIC TRANSPORTATION,4061,2016-03-16,2016-03-14,TRAINLINE,RAIL TICKETS,REDACTED,471565******4841,4112,PASSENGER RAILWAYS,73.54,Pound Sterling (826),1,73.54,Debit,74998866075610366065687,2016-04-02,GLOUCESTER CC
Gloucester City Council,23UE,TOWNSCAPE HERITAGE INITIATIVE,GO102,PUBLIC TRANSPORTATION,4061,2016-03-18,2016-03-17,TRAINLINE,RAIL TICKETS,REDACTED,471565******4841,4112,PASSENGER RAILWAYS,210.12,Pound Sterling (826),1,210.12,Debit,74998866077610408175666,2016-04-02,GLOUCESTER CC
Gloucester City Council,23UE,PLANNING POLICY & HERITAGE,PT300,PUBLIC TRANSPORTATION,4061,2016-03-18,2016-03-17,TRAINLINE,RAIL TICKETS,REDACTED,471565******4841,4112,PASSENGER RAILWAYS,20.04,Pound Sterling (826),1,20.04,Debit,74998866077610408172499,2016-04-02,GLOUCESTER CC
Gloucester City Council,23UE,GUILDHALL EVENTS,LA200,FEES FOR SERVICES RECEIVED,5350,2016-03-03,2016-03-02,MIPERMIT PARKING-DOM,INTERNET,REDACTED,471565******6962,7523,AUTOMOBILE PARKING LOTS AND GARAGES,10,Pound Sterling (826),1,10,Debit,74745106063020075433542,2016-04-02,GLOUCESTER CC
Gloucester City Council,23UE,GUILDHALL CINEMA,LA202,PUBLIC TRANSPORTATION,4061,2016-03-09,2016-03-08,GWR WEBSALES ECOM,SWINDON,REDACTED,471565******6962,4112,PASSENGER RAILWAYS,16.6,Pound Sterling (826),1,16.6,Debit,74424716068160307976287,2016-04-02,GLOUCESTER CC
Gloucester City Council,23UE,GUILDHALL EVENTS,LA200,FEES FOR SERVICES RECEIVED,5350,2016-03-14,2016-03-11,MIPERMIT PARKING-DOM,INTERNET,REDACTED,471565******6962,7523,AUTOMOBILE PARKING LOTS AND GARAGES,10,Pound Sterling (826),1,10,Debit,74745106072090090684337,2016-04-02,GLOUCESTER CC
Gloucester City Council,23UE,BLACKFRIARS,LA609,FEES FOR SERVICES RECEIVED,5350,2016-03-14,2016-03-11,PAYPAL *POTSINSPIRE,35314369001,REDACTED,471565******6962,5932,ANTIQUE SHOPS,25.98,Pound Sterling (826),1,25.98,Debit,74998766071610120407189,2016-04-02,GLOUCESTER CC
Gloucester City Council,23UE,GLOUCESTER GUILDHALL,LA100,GENERAL REPAIR/MAINT BUILDINGS,3000,2016-03-16,2016-03-15,Amazon UK Marketplace,800-279-6620,REDACTED,471565******6962,5999,MISCELLANEOUS AND RETAIL STORES,107.28,Pound Sterling (826),1,107.28,Debit,74313226075000817901919,2016-04-02,GLOUCESTER CC
Gloucester City Council,23UE,GLOUCESTER GUILDHALL,LA100,GENERAL REPAIR/MAINT BUILDINGS,3000,2016-03-16,2016-03-15,Amazon UK Retail,AMAZON.CO.UK,REDACTED,471565******6962,5969,ALL OTHER DIRECT MARKETERS,349.98,Pound Sterling (826),1,349.98,Debit,74313226075000959583772,2016-04-02,GLOUCESTER CC
Gloucester City Council,23UE,GLOUCESTER GUILDHALL,LA100,GENERAL REPAIR/MAINT BUILDINGS,3000,2016-03-18,2016-03-17,WWW.DIRECTA.CO.UK,INTERNET,REDACTED,471565******6962,5085,INDUSTRIAL SUPPLIES NOT ELSEWHERE CLASSI,113.7,Pound Sterling (826),1,113.7,Debit,74916776078030075935731,2016-04-02,GLOUCESTER CC
Gloucester City Council,23UE,GLOUCESTER GUILDHALL,LA100,MAINTENANCE OF EQUIPMENT,5030,2016-03-18,2016-03-16,PAYPAL *LIGHTS4FUN,35314369001,REDACTED,471565******6962,5719,MISCELLANEOUS HOUSE FURNISHING SPECIALITY STORES,153,Pound Sterling (826),1,153,Debit,74998866077610393310310,2016-04-02,GLOUCESTER CC
Gloucester City Council,23UE,GUILDHALL EVENTS,LA200,FEES FOR SERVICES RECEIVED,5350,2016-03-21,2016-03-18,MIPERMIT PARKING-DOM,INTERNET,REDACTED,471565******6962,7523,AUTOMOBILE PARKING LOTS AND GARAGES,10,Pound Sterling (826),1,10,Debit,74745106079040091759375,2016-04-02,GLOUCESTER CC
Gloucester City Council,23UE,GLOUCESTER GUILDHALL,LA100,VOCATIONAL TRAINING,2970,2016-03-21,2016-03-20,WOWCHER,INTERNET,REDACTED,471565******6962,5192,BOOKS PERIODICALS AND NEWSPAPERS,19,Pound Sterling (826),1,19,Debit,74745096081040836234154,2016-04-02,GLOUCESTER CC
Gloucester City Council,23UE,GUILDHALL SOUND DESKS,LY059,CONTRACT PAYMENTS,0020,2016-03-23,2016-03-22,CANFORD AUDIO PLC,WASHINGTON,REDACTED,471565******6962,5732,ELECTRONIC SALES,122.95,Pound Sterling (826),1,122.95,Debit,74085326083465000010329,2016-04-02,GLOUCESTER CC
Gloucester City Council,23UE,GUILDHALL SOUND DESKS,LY059,CONTRACT PAYMENTS,0020,2016-03-24,2016-03-23,Amazon UK Marketplace,800-279-6620,REDACTED,471565******6962,5942,BOOK STORES,23.98,Pound Sterling (826),1,23.98,Debit,74313226083000370364778,2016-04-02,GLOUCESTER CC
Gloucester City Council,23UE,GUILDHALL SOUND DESKS,LY059,CONTRACT PAYMENTS,0020,2016-03-24,2016-03-23,APPLE ONLINE STORE GBP,0845-600-1683,REDACTED,471565******6962,5732,ELECTRONIC SALES,349,Pound Sterling (826),1,349,Debit,74313226083000420744227,2016-04-02,GLOUCESTER CC
Gloucester City Council,23UE,BLACKFRIARS,LA609,GENERAL REPAIR/MAINT BUILDINGS,3000,2016-03-24,2016-03-22,PAYPAL *SHOP-EQUIP,35314369001,REDACTED,471565******6962,5331,VARIETY STORES,229.14,Pound Sterling (826),1,229.14,Debit,74998766083611332713444,2016-04-02,GLOUCESTER CC
Gloucester City Council,23UE,GUILDHALL EVENTS,LA200,FEES FOR SERVICES RECEIVED,5350,2016-03-25,2016-03-24,MIPERMIT PARKING-DOM,INTERNET,REDACTED,471565******6962,7523,AUTOMOBILE PARKING LOTS AND GARAGES,15,Pound Sterling (826),1,15,Debit,74745106085080105443162,2016-04-02,GLOUCESTER CC
Gloucester City Council,23UE,GUILDHALL EVENTS,LA200,FEES FOR SERVICES RECEIVED,5350,2016-03-25,2016-03-24,MIPERMIT PARKING-DOM,INTERNET,REDACTED,471565******6962,7523,AUTOMOBILE PARKING LOTS AND GARAGES,15,Pound Sterling (826),1,15,Debit,74745106085080105443436,2016-04-02,GLOUCESTER CC
Gloucester City Council,23UE,GUILDHALL EVENTS,LA200,FEES FOR SERVICES RECEIVED,5350,2016-03-25,2016-03-24,MIPERMIT PARKING-DOM,INTERNET,REDACTED,471565******6962,7523,AUTOMOBILE PARKING LOTS AND GARAGES,10,Pound Sterling (826),1,10,Debit,74745106085080105443873,2016-04-02,GLOUCESTER CC
Gloucester City Council,23UE,GLOUCESTER GUILDHALL,LA100,VOCATIONAL TRAINING,2970,2016-03-25,2016-03-24,WOWCHER,INTERNET,REDACTED,471565******6962,5192,BOOKS PERIODICALS AND NEWSPAPERS,24,Pound Sterling (826),1,24,Debit,74745096085080142411100,2016-04-02,GLOUCESTER CC
Gloucester City Council,23UE,BLACKFRIARS,LA609,GENERAL REPAIR/MAINT BUILDINGS,3000,2016-03-31,2016-03-30,ARGOS RETAIL GROUP,INTERNET,REDACTED,471565******6962,5310,DISCOUNT STORES,225.93,Pound Sterling (826),1,225.93,Debit,74579156091007973341135,2016-04-02,GLOUCESTER CC
Gloucester City Council,23UE,GUILDHALL BAR AND CAF�,LA210,GENERAL REPAIR/MAINT BUILDINGS,3000,2016-03-31,2016-03-29,PAYPAL *ARGOSLIMITE,35314369001,REDACTED,471565******6962,5331,VARIETY STORES,68.99,Pound Sterling (826),1,68.99,Debit,74998866090612636811784,2016-04-02,GLOUCESTER CC
Gloucester City Council,23UE,GUILDHALL EVENTS,LA200,ADVERTISING AND PUBLICITY,5702,2016-04-01,2016-03-31,FACEBOOK BNG929JE72,www.fb.me/ads,REDACTED,471565******6962,7311,ADVERTISING SERVICES,44.77,Pound Sterling (826),1,44.77,Debit,74987506091622543671530,2016-04-02,GLOUCESTER CC
Gloucester City Council,23UE,BUSINESS PLANNING & PERFORMANC,RL500,PUBLIC TRANSPORTATION,4061,2016-03-03,2016-03-02,TRAINLINE,03332 022 222,REDACTED,471565******3318,4112,PASSENGER RAILWAYS,52.12,Pound Sterling (826),1,52.12,Debit,74998866062608114972118,2016-04-02,GLOUCESTER CC
Gloucester City Council,23UE,BUSINESS TRANSFORMATION & TECH,RT700,COMPUTER CONSUMABLES,5422,2016-03-11,2016-03-10,CRUCIAL.COM,800-013-0330,REDACTED,471565******3318,5045,COMPUTERS COMPUTER PERIPHERAL EQUIPMENT  SOFTWARE,196.6,Pound Sterling (826),1,196.6,Debit,74313226070000529218292,2016-04-02,GLOUCESTER CC
Gloucester City Council,23UE,BUSINESS TRANSFORMATION & TECH,RT700,COMPUTER CONSUMABLES,5422,2016-03-11,2016-03-10,CRUCIAL.COM,800-013-0330,REDACTED,471565******3318,5045,COMPUTERS COMPUTER PERIPHERAL EQUIPMENT  SOFTWARE,196.6,Pound Sterling (826),1,196.6,Debit,74313226070000529218565,2016-04-02,GLOUCESTER CC
Gloucester City Council,23UE,BUSINESS TRANSFORMATION & TECH,RT700,LICENCES,5703,2016-03-15,2016-03-14,EASILY LTD,LONDON E14,REDACTED,471565******3318,7392,MANAGEMENT  CONSULTING AND PUBLIC RELATIONS SERVICES,93.75,Pound Sterling (826),1,93.75,Debit,74579156075000871264673,2016-04-02,GLOUCESTER CC
Gloucester City Council,23UE,BUSINESS TRANSFORMATION & TECH,RT700,LICENCES,5703,2016-03-15,2016-03-14,EASILY LTD,LONDON E14,REDACTED,471565******3318,7392,MANAGEMENT  CONSULTING AND PUBLIC RELATIONS SERVICES,8.08,Pound Sterling (826),1,8.08,Debit,74579156075000971264698,2016-04-02,GLOUCESTER CC
Gloucester City Council,23UE,BUSINESS PLANNING & PERFORMANC,RL500,PUBLIC TRANSPORTATION,4061,2016-03-17,2016-03-16,TRAINLINE,03332 022 222,REDACTED,471565******3318,4112,PASSENGER RAILWAYS,79.87,Pound Sterling (826),1,79.87,Debit,74998866076610389134485,2016-04-02,GLOUCESTER CC
Gloucester City Council,23UE,BUSINESS PLANNING & PERFORMANC,RL500,PUBLIC TRANSPORTATION,4061,2016-03-23,2016-03-22,TRAINLINE,03332 022 222,REDACTED,471565******3318,4112,PASSENGER RAILWAYS,52.12,Pound Sterling (826),1,52.12,Debit,74998866082611500083355,2016-04-02,GLOUCESTER CC
Gloucester City Council,23UE,BUSINESS TRANSFORMATION & TECH,RT700,LICENCES,5703,2016-03-24,2016-03-23,EASILY LTD,LONDON E14,REDACTED,471565******3318,7392,MANAGEMENT  CONSULTING AND PUBLIC RELATIONS SERVICES,24.23,Pound Sterling (826),1,24.23,Debit,74579156084006871818805,2016-04-02,GLOUCESTER CC
Gloucester City Council,23UE,REGISTRATION OF ELECTORS,RS400,FEES FOR SERVICES RECEIVED,5350,2016-03-04,2016-03-03,WWW.ICO.GOV.UK,03031231113 W,REDACTED,471565******5409,9399,GOVERNMENT SERVICES NOT ELSEWHERE CLASSIFIED,500,Pound Sterling (826),1,500,Debit,74579156064006979129877,2016-04-02,GLOUCESTER CC
Gloucester City Council,23UE,CLIENT REVS & BENS CONTRACT,RT240,COURT FEES,5358,2016-03-10,2016-03-09,HMCOURTS-SERVICE.G,1452420100,REDACTED,471565******5409,9222,FINES,1104,Pound Sterling (826),1,1104,Debit,74579156070000576533070,2016-04-02,GLOUCESTER CC
Gloucester City Council,23UE,FINANCIAL SERVICES,RT200,PUBLIC TRANSPORTATION,4061,2016-03-10,2016-03-09,GWR WEBSALES ECOM,SWINDON,REDACTED,471565******5409,4112,PASSENGER RAILWAYS,9.1,Pound Sterling (826),1,9.1,Debit,74424716069160317938177,2016-04-02,GLOUCESTER CC
Gloucester City Council,23UE,INHOUSE TRAINING,EH200,VOCATIONAL TRAINING,2970,2016-03-22,2016-03-21,WWW.CIPS.ORG,0845 8801188,REDACTED,471565******5409,8699,MEMBERSHIP ORGANIZATIONS NOT ELSEWHERE CLASSIFIED,118.32,Pound Sterling (826),1,118.32,Debit,74579156082001878854707,2016-04-02,GLOUCESTER CC
